Cogmind - Beta 11.2 @@@ ROGUE MODE // 2023.02.18 @ 23:50:36 Player: IzRey Result: Destroyed by 10-PRN(z) with Makeshift Sword Performance ------------- Evolutions (4) 2000 Regions Visited (12) 2400 Robots Destroyed (198) 990 Value Destroyed (6536) 6536 Prototype IDs (28) 560 Alien Tech Used (0) 0 Bonus (1073) 1073 TOTAL SCORE: 13559 Bonus ------- High Alert Combat Kills 498 Follower Combat Kills 28 Aligned with FarCom 300 Met Imprinter 300 Friendly Fire -53 Cogmind --------- Core Integrity 0/850 Matter 6/300 Energy 100/100 System Corruption 20% Temperature Cool (0) Movement Core (1350) Ox26 Location -6/Zion Parts ------- > --- POWER (1) -------- (None) > --- PROPULSION (4) --- (None) > --- UTILITY (8) ------ High-capacity Storage Unit High-capacity Storage Unit Chronowheel > --- WEAPON (2) ------- (None) > --- INVENTORY (20) --- Improved Carbon-fiber Leg Improved Field Recycling Unit (22) Heavy Plasma Cannon Coil Gun Peak State ------------ > --- POWER ------------ Fission Core > --- PROPULSION ------- Armored Huge Wheel Armored Huge Wheel > --- UTILITY ---------- Advanced Heat Sink High-capacity Storage Unit Improved Signal Interpreter Advanced Terrain Scanner Target Analyzer Matter Filter Kinecellerator Hardened Medium Armor Plating > --- WEAPON ----------- Coil Gun Coil Gun > --- INVENTORY -------- Angular Momentum Engine Light Fission Core Improved Carbon-fiber Leg Improved Carbon-fiber Leg Improved Carbon-fiber Leg Improved Carbon-fiber Leg Armored Huge Wheel Armored Huge Wheel Improved Heat Sink Improved Heavy Armor Plating Improved Field Recycling Unit Chronowheel Heavy Plasma Cannon Coil Gun Missile Launcher Powered Hammer Katana [Rating: 68] Favorites ----------- Power Light Nuclear Core Engine Angular Momentum Engine Power Core Light Nuclear Core Propulsion Improved Carbon-fiber Leg Leg Improved Carbon-fiber Leg Wheel Armored Huge Wheel Utility Hardened Medium Armor Plating Device Kinecellerator Storage High-capacity Storage Unit Processor Improved Signal Interpreter Protection Hardened Medium Armor Plating Weapon Enhanced Autogun Energy Cannon Heavy Ion Cannon Ballistic Gun Enhanced Autogun Ballistic Cannon Advanced Assault Cannon Launcher Missile Launcher Slashing Weapon Katana Build | -11 -10 -10 -9 -9 -9 -8 -8 -7 -6 -6 -6 -6 ------- Run | Scr Mat Min Mat Min Exi Min Mat Fac Fac Low Low Zio Slots Evolved 8 | . . . 2 . . . 2 2 2 . . . Power . | . . . . . . . . . . . . . Propulsion 2 | . . . . . . . 1 1 . . . . Utility 6 | . . . 2 . . . 1 1 2 . . . Weapon . | . . . . . . . . . . . . . Parts Attached 193 | . 6 4 13 1 . 6 30 71 27 5 2 28 Power 18 | . 1 1 2 . . . 3 5 4 . . 2 Engine 8 | . 1 . 1 . . . . 3 2 . . 1 Core 10 | . . 1 1 . . . 3 2 2 . . 1 Reactor . | . . . . . . . . . . . . . Propulsion 34 | . 3 1 2 . . 3 7 13 . . . 5 Treads . | . . . . . . . . . . . . . Leg 27 | . 3 1 2 . . 3 7 8 . . . 3 Wheel 7 | . . . . . . . . 5 . . . 2 Hover . | . . . . . . . . . . . . . Flight . | . . . . . . . . . . . . . Utility 67 | . 1 . 3 . . 1 8 32 14 1 1 6 Device 22 | . . . . . . . . 11 8 . . 3 Storage 4 | . . . . . . . 3 . . . . 1 Processor 9 | . 1 . . . . . 2 2 2 1 . 1 Hackware . | . . . . . . . . . . . . . Protection 32 | . . . 3 . . 1 3 19 4 . 1 1 Artifact . | . . . . . . . . . . . . . Weapon 74 | . 1 2 6 1 . 2 12 21 9 4 1 15 Energy Gun . | . . . . . . . . . . . . . Energy Cannon 3 | . . . . . . . . 3 . . . . Ballistic Gun 25 | . . 1 2 . . . 4 6 5 2 1 4 Ballistic Cannon 12 | . . . 2 1 . 1 3 5 . . . . Launcher 22 | . 1 1 2 . . 1 5 3 . 2 . 7 Special Weapon . | . . . . . . . . . . . . . Impact Weapon . | . . . . . . . . . . . . . Slashing Weapon 12 | . . . . . . . . 4 4 . . 4 Piercing Weapon . | . . . . . . . . . . . . . Special Melee Weapon . | . . . . . . . . . . . . . Unidentified Prototypes 5 | . . . 1 . . . 1 2 . . . 1 Parts Lost 58 | . . . 2 . . 2 1 24 3 2 1 23 Power 8 | . . . . . . . 1 4 . . . 3 Propulsion 11 | . . . . . . 1 . 5 . . . 5 Utility 28 | . . . . . . 1 . 13 3 1 1 9 Weapon 11 | . . . 2 . . . . 2 . 1 . 6 Highest Loss Streak 7 | . . . 1 . . 1 1 5 2 2 1 7 To Critical Strikes 1 | . . . . . . . . 1 . . . . Average Slot Usage (%) 91 | . 97 100 96 100 100 99 99 89 85 85 84 71 Engine 2 | . 14 9 . . . . . 2 5 . . . Core 5 | . . 4 11 11 11 11 8 4 . 6 6 5 Leg 14 | . 28 28 22 22 22 22 27 14 . . . . Wheel 6 | . . . . . . . . 7 13 13 13 12 Device 7 | . . . . . . . . 7 23 20 18 9 Storage 8 | . 14 14 11 11 11 11 9 7 6 6 6 6 Processor 14 | . 11 14 11 11 11 11 17 13 12 18 20 17 Protection 13 | . . . 20 22 22 21 17 15 9 6 6 5 Energy Cannon 1 | . . . . . . . . 2 2 . . . Ballistic Gun 8 | . 28 17 14 11 11 11 15 3 4 11 7 3 Ballistic Cannon 4 | . . . 5 6 11 9 . 6 2 . . . Launcher 1 | . . 10 1 4 . 1 1 . . . 5 3 Naked Turns . | . . . . . . . . . . . . . Heaviest Build 101 | 11 13 13 22 22 22 22 74 94 101 78 80 81 Greatest Support 74 | 20 20 20 20 20 20 35 54 74 56 56 56 56 Greatest Overweight (x) 26 | . . . 1 1 1 1 1 24 1 1 1 26 Average Overweight (x) . | . . . . . 1 . . . 1 1 1 1 Largest Inventory Capacity 20 | 8 8 8 8 8 8 8 20 20 20 20 20 20 Average Capacity 17 | 8 8 8 8 8 8 8 19 20 20 20 20 20 Most Carried 20 | 6 8 8 8 8 8 8 20 20 20 19 19 20 Average Carried 16 | 6 6 8 7 8 8 7 17 18 19 18 17 16 Final Capacity 20 | 8 8 8 8 8 8 8 20 20 20 20 20 20 Final Carried 20 | 6 8 8 8 8 8 8 20 19 20 18 18 4 Class Distribution -------------------- 92% | Mutant 4% | Assassin Dominant Class ---------------- Mutant | -10/Materials Mutant | -10/Mines Mutant | -9/Materials Mutant | -9/Mines Mutant | -9/Exiles Mutant | -8/Mines Mutant | -8/Materials Mutant | -7/Factory Mutant | -6/Factory Mutant | -6/Lower Caves Mutant | -6/Lower Caves Mutant | -6/Zion Resources | -11 -10 -10 -9 -9 -9 -8 -8 -7 -6 -6 -6 -6 ----------- Run | Scr Mat Min Mat Min Exi Min Mat Fac Fac Low Low Zio Matter Collected 5393 | 216 182 115 359 78 . 39 1343 2099 495 66 97 304 Remotely . | . . . . . . . . . . . . . Salvage Created 6220 | 108 313 215 593 33 . 76 1652 2083 469 111 97 470 Parts 369 | 5 25 13 27 7 . 9 94 111 21 6 10 41 Haulers Intercepted . | . . . . . . . . . . . . . Recyclers Shooed 3 | . . . . . . . 1 2 . . . . Parts Field Recycled 4 | . . . . . . . . 4 . . . . Retrieved Matter 40 | . . . . . . . . 40 . . . . Parts Self-Destructed 13 | . . . . . . . . . . 5 8 . Prevented . | . . . . . . . . . . . . . Kills | -11 -10 -10 -9 -9 -9 -8 -8 -7 -6 -6 -6 -6 ------- Run | Scr Mat Min Mat Min Exi Min Mat Fac Fac Low Low Zio Combat Hostiles Destroyed 150 | . 7 7 16 5 . 4 43 41 9 3 7 8 Melee 7 | . . . . . . . . 6 . . . 1 Guns 57 | . 7 2 11 1 . 2 17 4 7 2 2 2 Cannons 39 | . . . 2 2 . . 6 27 2 . . . AOE 47 | . . 5 3 2 . 2 20 4 . 1 5 5 Classes Destroyed 17 | 2 2 2 3 . . 2 2 2 . . . 2 Worker 10 | . 1 . . . . . 4 5 . . . . Builder 4 | . . 1 1 . . . 2 . . . . . Tunneler 1 | 1 . . . . . . . . . . . . Recycler 8 | 1 . . . . . . 3 4 . . . . Operator 1 | . . . . . . . 1 . . . . . Watcher 3 | . . . 1 . . . 2 . . . . . Swarmer 38 | . . 3 4 5 . 3 13 4 . . 6 . Grunt 55 | . 7 4 7 . . . 21 13 3 . . . Brawler 3 | . . . 1 . . . 1 1 . . . . Duelist 1 | . . . . . . . 1 . . . . . Sentry 19 | . . . 4 . . . 7 7 . . 1 . Specialist 4 | . . . . . . . . 4 . . . . Hunter 5 | . . . . . . 1 . . 2 2 . . Programmer 17 | . . . . . . . . 12 4 1 . . Zionite 21 | . . . . . . 1 . . . . . 20 Tinkerer 3 | . . . . . . . . . . . . 3 Savage 1 | . . . . . . . . . . . . 1 Mutant 6 | . . . . . . . . . . . . 6 Best Kill Streak 9 | 2 2 3 6 2 . 3 9 4 2 3 4 8 Combat Bots Only 7 | . 2 3 6 2 . 3 7 4 2 3 4 4 Max Kills in Single Turn 6 | 1 1 3 3 2 . 4 4 2 1 1 2 6 Gunslinging . | . . . . . . . . . . . . . Exploded 3 | . . 3 2 2 . 2 3 2 . 1 2 2 Melee 1 | . . . . . . . . 1 . . . 1 Uniques/NPCs Destroyed 1 | . . . . . . . . . . . . 1 Imprinter (-6/Zion) Combat | -11 -10 -10 -9 -9 -9 -8 -8 -7 -6 -6 -6 -6 -------- Run | Scr Mat Min Mat Min Exi Min Mat Fac Fac Low Low Zio Damage Taken 13047 | . 321 238 750 43 . 160 1538 4722 888 322 349 3716 Core 1618 | . 49 66 107 7 . 20 117 396 40 . 72 744 Absorbed by Shields 8 | . . . . . . . . 8 . . . . Regen/Repaired (Parts) 345 | . . . . . . . . . 156 . . 189 Core Remaining (%) 68 | 100 . 54 . . . 66 78 43 . . . . Volleys Fired 490 | 4 33 11 53 6 . 5 128 159 32 6 13 40 Largest 2 | 2 2 2 2 2 . 2 2 2 2 2 2 2 Hottest 128 | 40 40 50 59 59 . 59 64 128 128 60 60 75 Shots Fired 876 | 8 66 22 94 12 . 10 252 258 58 10 15 71 Gun 540 | 8 66 19 82 6 . 5 198 31 48 8 9 60 Cannon 281 | . . . 10 5 . 4 27 225 10 . . . Launcher 55 | . . 3 2 1 . 1 27 2 . 2 6 11 Special . | . . . . . . . . . . . . . Kinetic 754 | 8 66 19 92 11 . 9 225 192 55 8 9 60 Thermal 67 | . . . . . . . . 64 3 . . . Explosive 55 | . . 3 2 1 . 1 27 2 . 2 6 11 Electromagnetic . | . . . . . . . . . . . . . Robot Hit Streak 16 | 2 8 9 15 3 . 9 14 16 7 3 6 10 Robot Miss Streak 5 | 2 4 1 2 3 . . 5 4 2 1 2 4 Penetration Max 1 | . . . . . . . . . 1 . . 1 Secondary Targets 5 | . . . . . . . 1 . . 1 . 3 Max Gunslinging Chain 1 | . . . . . . . 1 . . 1 . 1 Shots Hit Robots 577 | 5 42 14 67 5 . 8 160 162 35 7 9 63 Core Hits 347 | 4 19 10 31 6 . 7 91 75 15 6 9 74 Critical Kills 7 | . 1 . 1 . . . . . 2 . . 3 Critical Parts Destroyed 10 | . 1 . . . . . . . 4 . . 5 Critical Strikes 23 | . 2 . 1 . . . 3 3 6 . . 8 Destroy 17 | . 2 . 1 . . . . . 6 . . 8 Blast 5 | . . . . . . . 3 2 . . . . Sever 1 | . . . . . . . . 1 . . . . Melee Attacks 91 | . . . . . . . . 61 16 . . 14 Impact . | . . . . . . . . . . . . . Slashing 91 | . . . . . . . . 61 16 . . 14 Piercing . | . . . . . . . . . . . . . Sneak Attacks 8 | . . . . . . . . 6 1 . . 1 Combat Hostiles . | . . . . . . . . . . . . . Follow-up Attacks . | . . . . . . . . . . . . . Damage Inflicted 17223 | 54 412 394 1032 141 . 251 4483 5211 898 377 661 3309 Guns 5956 | 54 412 103 655 26 . 54 2125 449 780 116 158 1024 Cannons 4060 | . . . 153 44 . 46 471 3282 64 . . . Explosions 5589 | . . 291 224 71 . 151 1887 224 . 261 503 1977 Melee 1458 | . . . . . . . . 1103 54 . . 301 Ramming 160 | . . . . . . . . 153 . . . 7 Kinetic 8833 | 54 412 103 808 70 . 100 2596 2612 780 116 158 1024 Thermal 1183 | . . . . . . . . 1119 64 . . . Explosive 5589 | . . 291 224 71 . 151 1887 224 . 261 503 1977 Electromagnetic . | . . . . . . . . . . . . . Impact . | . . . . . . . . . . . . . Slashing 1458 | . . . . . . . . 1103 54 . . 301 Piercing . | . . . . . . . . . . . . . Highest Corruption 22 | . . . . . . . . 22 . . . 20 Average Corruption 11 | . . . . . . . . 11 . . . 9 Corruption Purged 5 | . . . . . . . . 5 . . . . Corruption Blocked . | . . . . . . . . . . . . . Effects 231 | . . . . . . . . 213 . . . 18 Message Errors 56 | . . . . . . . . 51 . . . 5 Matter Fused 44 | . . . . . . . . 42 . . . 2 Heat Flow Errors 26 | . . . . . . . . 23 . . . 3 Energy Discharges 30 | . . . . . . . . 27 . . . 3 Parts Rejected 6 | . . . . . . . . 4 . . . 2 Data Loss (minor) 31 | . . . . . . . . 31 . . . . Data Loss (major) 7 | . . . . . . . . 7 . . . . Misfires 8 | . . . . . . . . 7 . . . 1 Alerts 5 | . . . . . . . . 5 . . . . Misdirections 6 | . . . . . . . . 4 . . . 2 Weapon Failures 12 | . . . . . . . . 12 . . . . Overload Shots . | . . . . . . . . . . . . . Overflow Damage 450 | . . 42 5 . . . 112 134 14 . 55 88 Projectiles 107 | . . . . . . . . 107 . . . . Explosions 246 | . . 42 5 . . . 112 . . . 55 32 Melee 97 | . . . . . . . . 27 14 . . 56 Knockbacks 30 | . . . . . . . 10 19 . . . 1 Impact 4 | . . . . . . . . 3 . . . 1 Kinetic 24 | . . . . . . . 8 16 . . . . Secondary 2 | . . . . . . . 2 . . . . . Self-Inflicted Damage 561 | . . . . . . 65 97 38 . . 110 251 Shots 21 | . . . . . . 2 2 1 . . 2 14 Rammed 5 | . . . . . . . . 3 . . . 2 Targets Rammed 25 | . . . . . . . . 20 . . . 5 Kicked 20 | . . . . . . . . 17 . . . 3 Crushed . | . . . . . . . . . . . . . Highest Temperature 601 | . 30 16 63 12 . 24 331 601 27 . . 256 Average Temperature 84 | . 10 8 17 6 . 11 80 105 11 . . 88 Received Heat Transfer 2979 | . 183 159 318 . . . 756 1437 90 . 18 18 Effects 24 | . . . . . . . 4 20 . . . . Shutdowns 5 | . . . . . . . 1 4 . . . . Energy Bleed 4 | . . . . . . . 1 3 . . . . Interference 7 | . . . . . . . 2 5 . . . . Matter Decay 2 | . . . . . . . . 2 . . . . Damage (minor) 2 | . . . . . . . . 2 . . . . Damage (major) 4 | . . . . . . . . 4 . . . . Siege Activations . | . . . . . . . . . . . . . Robots Corrupted . | . . . . . . . . . . . . . Combat Hostiles . | . . . . . . . . . . . . . Parts Fried . | . . . . . . . . . . . . . Impact Corruptions . | . . . . . . . . . . . . . Robots Melted . | . . . . . . . . . . . . . Combat Hostiles . | . . . . . . . . . . . . . Parts Melted 2 | . . . . 1 . . . 1 . . . . Heat Transferred 1671 | . . . . . . . . 1571 100 . . . Parts Sabotaged . | . . . . . . . . . . . . . Parts Stolen . | . . . . . . . . . . . . . Parts Stripped . | . . . . . . . . . . . . . Power Chain Reactions . | . . . . . . . . . . . . . Missiles Intercepted . | . . . . . . . . . . . . . Alert | -11 -10 -10 -9 -9 -9 -8 -8 -7 -6 -6 -6 -6 ------- Run | Scr Mat Min Mat Min Exi Min Mat Fac Fac Low Low Zio Peak Influence 1043 | 10 273 172 323 317 . 105 1043 809 410 . . . Initial 473 | . 6 28 45 84 . . 40 473 396 . . . Average 229 | 8 137 102 175 131 . 101 318 265 134 . . . Maximum Alert Level 3 | . 1 . 1 1 . . 3 3 2 . . . Low Security (%) 60 | 100 69 100 56 86 . 100 53 53 68 . . . Level 1 21 | . 30 . 43 13 . . 18 24 17 . . . Level 2 12 | . . . . . . . 9 18 14 . . . Level 3 5 | . . . . . . . 18 3 . . . . Level 4 . | . . . . . . . . . . . . . Level 5 . | . . . . . . . . . . . . . High Security . | . . . . . . . . . . . . . Max Security . | . . . . . . . . . . . . . Squads Dispatched 39 | . 2 . 1 . . . 11 20 5 . . . Investigation 10 | . . . 1 . . . 4 3 2 . . . Extermination 15 | . . . . . . . . 12 3 . . . Reinforcement 10 | . 2 . . . . . 3 5 . . . . Assault 1 | . . . . . . . 1 . . . . . Garrison 3 | . . . . . . . 3 . . . . . Intercept . | . . . . . . . . . . . . . Searches Triggered . | . . . . . . . . . . . . . Construction Impeded 1 | . . . . . . . . 1 . . . . Haulers Reinforced . | . . . . . . . . . . . . . Active Scanning Responses . | . . . . . . . . . . . . . Cargo Convoy Interrupts . | . . . . . . . . . . . . . Stealth | -11 -10 -10 -9 -9 -9 -8 -8 -7 -6 -6 -6 -6 --------- Run | Scr Mat Min Mat Min Exi Min Mat Fac Fac Low Low Zio Distress Signals 16 | . 1 . 4 . . . 7 3 1 . . . Communications Jammed . | . . . . . . . . . . . . . Distress Signals . | . . . . . . . . . . . . . Times Spotted 256 | . 14 10 22 10 . 4 70 65 12 3 7 39 Peak Tracking Total 9 | . 4 3 7 4 . 3 6 5 2 3 4 9 Tactical Retreats 8 | . . 1 1 1 . . 2 . . . . 3 Traps | -11 -10 -10 -9 -9 -9 -8 -8 -7 -6 -6 -6 -6 ------- Run | Scr Mat Min Mat Min Exi Min Mat Fac Fac Low Low Zio Traps Triggered 16 | . . . . . . . 1 10 5 . . . Indirectly . | . . . . . . . . . . . . . Trap Hack Attempts . | . . . . . . . . . . . . . Triggered . | . . . . . . . . . . . . . Disarmed . | . . . . . . . . . . . . . Reprogrammed 3 | . . . 3 . . . . . . . . . Reused 1 | . . . 1 . . . . . . . . . Traps Extracted . | . . . . . . . . . . . . . Installed . | . . . . . . . . . . . . . Triggered 2 | . . . 1 1 . . . . . . . . Exploded 2 | . . . . . 2 . . . . . . . Machines | -11 -10 -10 -9 -9 -9 -8 -8 -7 -6 -6 -6 -6 ---------- Run | Scr Mat Min Mat Min Exi Min Mat Fac Fac Low Low Zio Machines Disabled 12 | . 1 . 1 . . 1 4 4 . . . 1 Max in Single Turn 1 | . 1 . 1 . . 1 1 1 . . . 1 Machines Sabotaged . | . . . . . . . . . . . . . Garrisons Compromised . | . . . . . . . . . . . . . Overloaded Fab Kills . | . . . . . . . . . . . . . Hacking | -11 -10 -10 -9 -9 -9 -8 -8 -7 -6 -6 -6 -6 --------- Run | Scr Mat Min Mat Min Exi Min Mat Fac Fac Low Low Zio Machines Accessed 43 | . 1 . 3 . 1 . 9 19 9 . . 1 Terminals 29 | . 1 . 3 . . . 7 11 7 . . . Fabricators 4 | . . . . . . . . 4 . . . . Repair Stations 4 | . . . . . . . . 2 2 . . . Recycling Units 1 | . . . . . . . 1 . . . . . Scanalyzers 2 | . . . . . . . 1 1 . . . . Garrison Access 1 | . . . . . . . . 1 . . . . Total Hacks 94 | . 3 . 9 . 1 . 26 31 21 . . 3 Successful 37 | . 2 . 5 . 1 . 9 10 7 . . 3 Failed 57 | . 1 . 4 . . . 17 21 14 . . . Catastrophic 11 | . . . . . . . 2 7 2 . . . Database Lockouts . | . . . . . . . . . . . . . Manual 33 | . . . 1 . 1 . 12 3 16 . . . Terminals 70 | . 3 . 9 . . . 21 19 18 . . . Fabricators 7 | . . . . . . . . 7 . . . . Repair Stations 6 | . . . . . . . . 3 3 . . . Recycling Units 1 | . . . . . . . 1 . . . . . Scanalyzers 5 | . . . . . . . 4 1 . . . . Garrison Access 1 | . . . . . . . . 1 . . . . Terminal Hacks 17 | . 2 . 4 . 1 . 2 4 1 . . 3 Record 1 | . . . . . . . . 1 . . . . Part Schematic 3 | . . . . . . . . . . . . 3 Branch Access Points 1 | . . . 1 . . . . . . . . . Unreport Threat 1 | . . . . . . . . 1 . . . . Locate Traps 5 | . 1 . 1 . . . 2 1 . . . . Reprogram Traps 1 | . . . 1 . . . . . . . . . Recall Investigation 1 | . 1 . . . . . . . . . . . Zone Layout 3 | . . . 1 . . . . 1 1 . . . EX-Prototype ID Bank 1 | . . . . . 1 . . . . . . . Fabricator Hacks 5 | . . . . . . . . 5 . . . . Load Schematic 3 | . . . . . . . . 3 . . . . Build 2 | . . . . . . . . 2 . . . . Repair Station Hacks 2 | . . . . . . . . . 2 . . . Scan Component 1 | . . . . . . . . . 1 . . . Repair 1 | . . . . . . . . . 1 . . . Recycling Unit Hacks . | . . . . . . . . . . . . . Scanalyzer 3 | . . . . . . . 3 . . . . . Insert Component 1 | . . . . . . . 1 . . . . . Analyze 2 | . . . . . . . 2 . . . . . Garrison Access Hacks . | . . . . . . . . . . . . . Unauthorized Hacks 10 | . . . 1 . . . 4 1 4 . . . Terminals 9 | . . . 1 . . . 3 1 4 . . . Assimilate 1 | . . . . . . . . 1 . . . . Botnet 8 | . . . 1 . . . 3 . 4 . . . Fabricators . | . . . . . . . . . . . . . Repair Stations . | . . . . . . . . . . . . . Recycling Units 1 | . . . . . . . 1 . . . . . Tunnel 1 | . . . . . . . 1 . . . . . Scanalyzers . | . . . . . . . . . . . . . Garrison Access . | . . . . . . . . . . . . . Data Cores Recovered . | . . . . . . . . . . . . . Used . | . . . . . . . . . . . . . Hacking Detections 37 | . 1 . 3 . . . 8 17 8 . . . Full Trace Events 6 | . . . . . . . 3 3 . . . . Feedback Events . | . . . . . . . . . . . . . Feedback Blocked . | . . . . . . . . . . . . . Robot Schematics Acquired 4 | . . . . . . . . . . . . 4 Robots Built . | . . . . . . . . . . . . . Authchips . | . . . . . . . . . . . . . Time . | . . . . . . . . . . . . . Total Robot Build Rating . | . . . . . . . . . . . . . Part Schematics Acquired 15 | . . . . . . . 1 . . . . 14 Parts Built 4 | . . . . . . . . 4 . . . . Authchips . | . . . . . . . . . . . . . Time 168 | . . . . . . . . 168 . . . . Total Part Build Rating 16 | . . . . . . . . 16 . . . . Parts Repaired 1 | . . . . . . . . . 1 . . . Time 22 | . . . . . . . . . 22 . . . Parts Recycled . | . . . . . . . . . . . . . Recycled Matter . | . . . . . . . . . . . . . Retrieved Matter . | . . . . . . . . . . . . . Retrieved Components . | . . . . . . . . . . . . . Parts Scanalyzed 1 | . . . . . . . 1 . . . . . Part Schematics Acquired 1 | . . . . . . . 1 . . . . . Parts Damaged . | . . . . . . . . . . . . . Bothacking | -11 -10 -10 -9 -9 -9 -8 -8 -7 -6 -6 -6 -6 ------------ Run | Scr Mat Min Mat Min Exi Min Mat Fac Fac Low Low Zio Used RIF Installer . | . . . . . . . . . . . . . Robots Hacked . | . . . . . . . . . . . . . Non-combat . | . . . . . . . . . . . . . Combat . | . . . . . . . . . . . . . Robot Hacks Applied . | . . . . . . . . . . . . . Relay Couplers Released . | . . . . . . . . . . . . . Fabnet Peak Effective % . | . . . . . . . . . . . . . Robots Rewired . | . . . . . . . . . . . . . Allies Hacked . | . . . . . . . . . . . . . Hacks Repelled . | . . . . . . . . . . . . . Allies | -11 -10 -10 -9 -9 -9 -8 -8 -7 -6 -6 -6 -6 -------- Run | Scr Mat Min Mat Min Exi Min Mat Fac Fac Low Low Zio Total Allies 3 | . . . . 2 . . . 1 . . . . Largest Group 2 | . . . . 2 1 . . 1 . . . . Highest-Rated Group 46 | . . . . 46 31 . . 10 . . . . Highest-Rated Ally 31 | . . . . 31 31 . . 10 . . . . Total Orders . | . . . . . . . . . . . . . Ally Attacks 9 | . . . . 9 . . . . . . . . Total Damage 130 | . . . . 130 . . . . . . . . Kills 4 | . . . . 4 . . . . . . . . Allies Corrupted . | . . . . . . . . . . . . . Allies Melted . | . . . . . . . . . . . . . Intel | -11 -10 -10 -9 -9 -9 -8 -8 -7 -6 -6 -6 -6 ------- Run | Scr Mat Min Mat Min Exi Min Mat Fac Fac Low Low Zio Robot Analysis Total . | . . . . . . . . . . . . . Derelict Logs Recovered 5 | . . 1 . 2 . . . . . 1 . 1 Drone Launches . | . . . . . . . . . . . . . Drone Recoveries . | . . . . . . . . . . . . . Exploration | -11 -10 -10 -9 -9 -9 -8 -8 -7 -6 -6 -6 -6 ------------- Run | Scr Mat Min Mat Min Exi Min Mat Fac Fac Low Low Zio Turns Passed 18657 | 27 426 653 1145 712 471 283 3094 7113 2528 563 384 1258 Spaces Moved 10399 | 14 211 511 614 449 248 161 1262 3671 1602 469 306 881 Core 13 | . . . . . . . . 12 . . . 1 Treads . | . . . . . . . . . . . . . Legs 5033 | 14 211 511 614 449 248 161 1262 1556 . . . 7 Wheels 5353 | . . . . . . . . 2103 1602 469 306 873 Hover . | . . . . . . . . . . . . . Flight . | . . . . . . . . . . . . . Fastest Speed 100 | 120 120 120 120 120 190 120 126 100 115 115 115 100 Average Speed 137 | 120 120 120 152 151 190 129 181 138 115 115 115 116 Slowest Speed 1350 | 120 120 120 190 190 190 210 196 1250 115 115 115 1350 Overloaded Moves . | . . . . . . . . . . . . . Propulsion Burnouts . | . . . . . . . . . . . . . Robots Hopped . | . . . . . . . . . . . . . Cave-ins Triggered . | . . . . . . . . . . . . . Exploration Rate (%) 58 | 2 46 75 48 86 62 27 89 79 44 66 55 81 Regions Visited 12 Branch Regions 7 Pre-discovered Areas 4 | . . 1 . . . . 1 . . . . 2 Known Exits Taken 11 | . 1 1 1 1 1 1 1 1 1 1 1 . Unknown Exits Taken 1 | 1 . . . . . . . . . . . . Scrap Searched 7 | . . 1 . 1 . . . . . 2 3 . Spaces Dug 154 | . . 8 . . . . 58 58 21 . 9 . Terrain Destroyed 507 | . . 25 13 13 . 10 237 86 27 26 53 17 Melee 34 | . . . . . . . . 19 15 . . . Projectile 74 | . . . 1 . . . 1 57 12 3 . . AOE 399 | . . 25 12 13 . 10 236 10 . 23 53 17 Terrain Rammed . | . . . . . . . . . . . . . Walls Destroyed . | . . . . . . . . . . . . . Machines Disabled . | . . . . . . . . . . . . . Actions | -11 -10 -10 -9 -9 -9 -8 -8 -7 -6 -6 -6 -6 --------- Run | Scr Mat Min Mat Min Exi Min Mat Fac Fac Low Low Zio Total 13752 | 17 325 532 736 467 249 223 1888 5323 2202 480 322 988 Wait 2381 | . 68 3 45 12 . 51 424 1269 496 . . 13 Move 10387 | 13 210 510 613 448 247 160 1261 3670 1601 468 305 881 Hop . | . . . . . . . . . . . . . Pick Up 64 | . 3 1 4 . 1 . 21 25 6 . 1 2 Fast Attach 59 | . 1 1 5 . . 1 6 27 11 1 . 6 Attach 51 | . . . 1 . . 1 3 25 5 1 1 14 Detach 15 | . . . . . . . 4 4 4 . 1 2 Swap 83 | . 5 3 7 1 . 4 21 19 11 3 1 8 Drop 82 | . 5 3 8 . 1 1 20 28 12 1 . 3 Fire 490 | 4 33 11 53 6 . 5 128 159 32 6 13 40 Melee 91 | . . . . . . . . 61 16 . . 14 Ram 5 | . . . . . . . . 3 . . . 2 Kick 20 | . . . . . . . . 17 . . . 3 Crush . | . . . . . . . . . . . . . Escape Stasis 24 | . . . . . . . . 16 8 . . . Rewire . | . . . . . . . . . . . . . Trap . | . . . . . . . . . . . . . Miscellaneous . | . . . . . . . . . . . . . Route ------- -11/Scrapyard -10/Materials (discovered 2 exits: *Mat / *Min) -10/Mines (discovered 2 exits: *Mat x2) -9/Materials (discovered 4 exits: *Mat / *Min / Sto x2) -9/Mines (discovered 3 exits: *Mat x2 / *Exi) -9/Exiles (discovered 2 exits: *Min x2) -8/Mines -8/Materials (discovered 2 exits: *Fac x2) -7/Factory (discovered 6 exits: *Fac x4 / *Low x2) -6/Factory (discovered 2 exits: *Fac / *Low) -6/Lower Caves -6/Lower Caves -6/Zion (discovered 1 exit: *Pro) History --------- Turn | Location | Event 13 | -11/Scrapyard | Discovered new exit (range 2) 28 | -11/Scrapyard | Entered Materials 301 | -10/Materials | Build established: Mutant 363 | -10/Materials | Discovered new exit (range 9) 381 | -10/Materials | Identified exit to Materials 432 | -10/Materials | Discovered new exit (range 14) 450 | -10/Materials | Identified exit to Mines 454 | -10/Materials | Entered Mines 470 | -10/Mines | Discovered exit to Materials (range 8) 835 | -10/Mines | Discovered exit to Materials (range 10) 883 | -10/Mines | Learned location of Zion (-6) 984 | -10/Mines | Assembled infested the area 1107 | -10/Mines | Entered Materials 1107 | -9/Materials | Evolved 2 slots: Utility x2 1134 | -9/Materials | Identified exit to Mines 1134 | -9/Materials | Identified exit to Storage 1941 | -9/Materials | Discovered new exit (range 16) 1967 | -9/Materials | Identified exit to Materials 2252 | -9/Materials | Entered Mines 2280 | -9/Mines | Learned 2 Materials zone layouts 2347 | -9/Mines | Learned location of 1 exit from Materials 2347 | -9/Mines | Discovered exit to Materials (range 12) 2414 | -9/Mines | Received a Rocket Launcher from a helpful Derelict 2479 | -9/Mines | Discovered exit to Materials (range 13) 2545 | -9/Mines | A weapon hastily lodged in a ceiling crevice suddenly fell to the ground 2957 | -9/Mines | Deemed a non-threat by the Exiles lab entrance 2957 | -9/Mines | Discovered new exit (range 5) 2962 | -9/Mines | Identified exit to Exiles 2964 | -9/Mines | Entered Exiles 2964 | -9/Exiles | Accompanied by 1 ally 2989 | -9/Exiles | Discovered new exit (range 15) 2994 | -9/Exiles | Led the pair of lost Derelicts to a safe place 3010 | -9/Exiles | Met 8R-AWN 3042 | -9/Exiles | Met EX-HEX 3099 | -9/Exiles | Met EX-BIN 3126 | -9/Exiles | Aligned with FarCom system 3128 | -9/Exiles | Given EX-Vault access code 3173 | -9/Exiles | Opened EX-Vault 3189 | -9/Exiles | Found Chronowheel 3252 | -9/Exiles | Exiles lab attacked by MAIN.C 3412 | -9/Exiles | Discovered new exit (range 14) 3433 | -9/Exiles | Identified exit to Mines 3435 | -9/Exiles | Left Exiles lab with Chronowheel 3435 | -9/Exiles | Entered Mines 3648 | -8/Mines | Discovered exit to Materials (range 3) 3718 | -8/Mines | Entered Materials 3718 | -8/Materials | Evolved 2 slots: Propulsion x1, Utility x1 3719 | -8/Materials | Identified exit to Factory 5334 | -8/Materials | Discovered exit to Factory (range 16) 5890 | -8/Materials | Garrison activated, responded to threat 6060 | -8/Materials | Destroyed 7 combat bots 6118 | -8/Materials | First assault squad dispatched 6287 | -8/Materials | Destroyed 7 combat bots 6812 | -8/Materials | Entered Factory 6812 | -7/Factory | Evolved 2 slots: Propulsion x1, Utility x1 7696 | -7/Factory | Lost 4 parts (1p3n) 7960 | -7/Factory | Fabricated Imp. Carbon-fiber Leg (x2) 8127 | -7/Factory | Discovered new exit (range 8) 8178 | -7/Factory | Discovered new exit (range 3) 8181 | -7/Factory | Identified exit to Lower Caves 8505 | -7/Factory | Fabricated Imp. Carbon-fiber Leg (x2) 9290 | -7/Factory | Discovered new exit (range 12) 9320 | -7/Factory | Identified exit to Factory 10453 | -7/Factory | System corruption reached 10% 11208 | -7/Factory | Lost 3 parts (3u) 11244 | -7/Factory | Lost 3 parts (1p1u1w) 11422 | -7/Factory | Discovered exit to Factory (range 15) 12237 | -7/Factory | Discovered exit to Factory (range 5) 13347 | -7/Factory | Discovered exit to Lower Caves (range 7) 13366 | -7/Factory | Lost 5 parts (1p1n3u) 13520 | -7/Factory | Core integrity fell below 50% 13925 | -7/Factory | Entered another Factory area 13925 | -6/Factory | Evolved 2 slots: Utility x2 13985 | -6/Factory | Repaired Adv. Assault Cannon? 15340 | -6/Factory | Discovered new exit (range 15) 15399 | -6/Factory | Identified exit to Factory 15430 | -6/Factory | Build established: Assassin 16122 | -6/Factory | Build established: Mutant 16336 | -6/Factory | Discovered new exit (range 10) 16345 | -6/Factory | Identified exit to Lower Caves 16453 | -6/Factory | Entered Lower Caves 16910 | -6/Lower Caves | Encountered a Warlord checkpoint 16927 | -6/Lower Caves | Learned Factory terminal intel 17007 | -6/Lower Caves | Discovered new exit (range 5) 17011 | -6/Lower Caves | Identified exit to Lower Caves 17016 | -6/Lower Caves | Entered another Lower Caves area 17298 | -6/Lower Caves | Discovered new exit (range 16) 17342 | -6/Lower Caves | Attracted the attention of an 0b10 checkpoint 17362 | -6/Lower Caves | Identified exit to Zion 17400 | -6/Lower Caves | Entered Zion 17438 | -6/Zion | Discovered new exit (range 15) 17455 | -6/Zion | Identified exit to Proximity Caves 17597 | -6/Zion | Found Prototype Launcher 17597 | -6/Zion | Identified Rocket Array 17601 | -6/Zion | Found Rocket Array 17666 | -6/Zion | Given the Hacking Drone Bay 17674 | -6/Zion | Learned location of Armory (-4) 17699 | -6/Zion | Learned Factory scanalyzer intel 18114 | -6/Zion | Rebuked by Imprinter 18132 | -6/Zion | Attempted to imprint without authorization 18132 | -6/Zion | Attacked by Zionites 18456 | -6/Zion | Lost 7 parts (1n4u2w) 18536 | -6/Zion | Destroyed Imprinter 18538 | -6/Zion | Extracted access codes from Imprinter's data core 18555 | -6/Zion | System corruption reached 10% 18576 | -6/Zion | Core integrity fell below 50% 18591 | -6/Zion | Lost 6 parts (1p1n2u2w) 18623 | -6/Zion | Core integrity fell below 20% 18642 | -6/Zion | Activated Chronowheel 18658 | -6/Zion | Destroyed by 10-PRN(z) with Makeshift Sword Last Messages --------------- 18568_ E8-OWG(z) pulls a Mak. Hammer out of the Twisted Machinery. 18573_ System corrupted: Heat flow error (+283). 18577_ AU-9UQ(z) destroyed. 18589_ System corrupted: Imp. Carbon-fiber Leg rejected. 8W-7TA(z) bursts out of the Twisted Machinery. 18602_ 8W-7TA(z) pulls a Mak. Shrapnel Gun out of the Twisted Machinery. 18604_ System corrupted: Energy discharge (-51). 18604_ Hvy. Rocket Launcher destroyed. 18606_ Lgt. Fission Core destroyed. 18606_ Imp. Carbon-fiber Leg destroyed. 18621_ Arm. Huge Wheel destroyed. 18628_ Slammed into E8-OWG(z). 18631_ System corrupted: Energy discharge (-29). 18635_ Imp. Signal Interpreter destroyed. 18635_ System corrupted by crushing effect (+2). 18637_ Knocked back. 18642_ Spacetime feels off. 18643_ Slammed into E8-OWG(z). 18653_ Knocked back. 18658_ System corrupted: Imp. Carbon-fiber Leg rejected. Map ----- +----------------------------------------------------+ | "" """#??????????##""#"#?##???????#"" #" | | "" """#??????????????##???????????##" "" | | """" #"##???????????????????????????#"" "" | | = " """#???????????????????????????#"" "" | | * """ """#????????????????????????####"" "" | | """#???????????????????????##""" "" " | | """ ""#???????????????????????#""""X"" " | | """"" "##???????????????????????#"""" "" " | | """" """#???????????????????????##"" " " | | """" ""##????????????????????????#### "" | | " """#???????????????????????????# "" | | " """#???????????????????????????# "" | | "" ""##???????????????????????????## " | | " ""##"??????????????????????????#"" | | "" """""#?????????????????????????#"" | | ""#??????????????????????????##"" | | ""#???????????????????????????#"" | | = ""#???????????????????????????#"" | | * """#??###??????????????????????#"" | | ""#####"###????????????????????#"" | | " ""# #"#"""###??????????????????#"" "" | | "" ##"""""""##########?????????#"" "" | | """ " " """"#""##"############" "" | | "" """ """"""#""#""#"""#""" "" | | """ """ """""""""""""""" #" | | """ z z@ """ | | "" z """ | | " | | =" """" """"""" """ """" | | # # """"""" """""""""" """" """" " | | # # """"#" """#""""#"" """ """ " | | """ """" d"""""#""##""" "" | | """ "" """"########"" | | """ "" """"####""##"" "" | | # # "" "" ""##""""""##"" """ " | | ## ## "" "" """""""""""""" """"""""""""" " | | """ """""#"##""#" | | """"""#""""" ""########"#"" | | ""#"#"###"""" """""""""""""""#??????###""" | | """"""""#""""" """#""##"#""##""#???????#"""" | | """""""""""""" "###########?###???????#""#" | | """ """ ""#????????????????????##"#" | | """""""##?????????????????????#### | | """"""" """""##""""#?????????????????????????? | | "#"##"" """"""###"####"#?????????????????????????? | | ###"##""""#####??##???#??????????????????????????? | | ???###"####??????????????????????????????????????? | | ?????###?????????????????????????????????????????? | | ?????????????????????????????????????????????????? | | ?????????????????????????????????????????????????? | +----------------------------------------------------+ Best States ------------- Heat Dissipation 56 Energy Generation 18 Energy Capacity 310 Matter Stores 300 Matter Capacity 300 Sight Range 16 Terrain Scan Range 20 Terrain Scan Density 10 Armor Coverage 750 Resistance: KI 20 Evasion (%) 55 Targeting Accuracy 8 Target Analysis 5 Core Analysis 6 Matter Filtering 30 Kinecelleration 30 Salvage Targeting 1 Item Schematics ----------------- Imp. Carbon-fiber Leg | -8/Materials | Scanalyzed Imp. Trap Scanner | -6/Zion | Archive Imp. Transmission Jammer | -6/Zion | Archive Proton Cannon | -6/Zion | Archive Recoil Nullifier | -6/Zion | Archive Imp. Core Shielding | -6/Zion | Archive Adv. Transmission Jammer | -6/Zion | Archive Matter Neutralizer | -6/Zion | Archive Lgt. Fission Core | -6/Zion | Archive Lrn. Proton Cannon | -6/Zion | Archive 0b10 Decoder Chip [Scout] | -6/Zion | Archive Arm. Leg | -6/Zion | Archive Riot Gun | -6/Zion | Free Arc Thrower | -6/Zion | Free Battle Rifle | -6/Zion | Free Robot Schematics ------------------ A-15 Conveyor | -6/Zion | Archive H-77 Assassin | -6/Zion | Archive T-07 Excavator | -6/Zion | Archive G-50 Soldier | -6/Zion | Archive Fabricated ------------ Imp. Carbon-fiber Leg | x2 | -7/Factory Imp. Carbon-fiber Leg | x2 | -7/Factory Alien Tech Used ----------------- None Achievements -------------- Monster Challenges ------------ None Game ------ Seed PhaseFlyingActivator Manual? 0 Play Time 03:35:26 Cumulative 508.1 hours Start 2023.02.14 @ 21:09:55 End 2023.02.18 @ 23:50:36 Sessions 7 Manual Loads 0 Difficulty Rogue Special Mode None Game No. 49 Rogue 32 Adventurer 17 Explorer 0 Win Type - Total 1 Types 1/0/0/0/0/0/0/0/0 Lore% 52 Gallery% 60 Achievement% 49 Wizard Run 0 Options --------- ASCII 0 Keyboard 0 Movement Numpad Keybinds 0 Fullscreen 1 Font 12/Smallcaps Map View 76x56 Tactical HUD 1 Map Filters NONE Filters NONE Steam 1 RUN: 66bf846f-f6c0-4dad-bba3-9af799467081